bitfinex/quotes_SOLUSD_20240811
["timestamp","ask_amount","ask_price","bid_price","bid_amount"]
[1723355591731,0.8410911,155.97,155.95,6.4122]
[1723355592048,10.6210911,155.97,155.94,6.4126]
[1723355592252,0.8410911,155.97,155.93,16.0325]
[1723355592425,9.78,155.96,155.93,16.0325]
[1723355593251,9.78,155.96,155.93,22.4456]
[1723355593929,9.78,155.96,155.93,16.0325]
[1723355594235,0.8410911,155.97,155.9,21.3854]
[1723355594548,9.78,155.95,155.91,6.4138]
[1723355594749,9.78,155.95,155.92,6.4133]
[1723355594967,9.78,155.95,155.91,6.4139]
[1723355595748,9.78,155.93,155.89,22.4502]
[1723355596531,9.78,155.93,155.9,6.4142]
[1723355596730,9.78,155.94,155.91,6.4139]
[1723355597145,9.78,155.94,155.9,6.4143]
[1723355598154,9.78,155.94,155.91,6.4137]
[1723355598530,9.78,155.94,155.9,6.4143]
[1723355599842,9.78,155.94,155.91,6.4138]
[1723355600040,9.78,155.92,155.89,22.4504]
[1723355600250,9.78,155.92,155.9,6.4143]
[1723355601942,9.78,155.92,155.89,16.0359]
[1723355602546,9.78,155.92,155.86,21.3854]
[1723355602547,9.78,155.9,155.86,21.3854]
[1723355602948,9.78,155.9,155.87,6.4154]
[1723355603547,9.78,155.9,155.86,21.3854]
[1723355603548,9.78,155.9,155.88,6.4151]
[1723355605056,6.4123,155.95,155.89,6.4147]
[1723355605360,9.78,155.92,155.9,6.4143]
[1723355606939,9.78,155.92,155.89,6.4147]
[1723355608757,9.78,155.92,155.9,6.4142]
[1723355611164,9.78,155.92,155.89,6.4147]
[1723355611339,9.78,155.92,155.88,16.0376]
[1723355612261,9.78,155.92,155.88,22.4527]
[1723355616255,9.78,155.92,155.89,7.69728901]
[1723355616448,6.4127,155.95,155.89,7.69728901]
[1723355616651,9.78,155.94,155.91,6.4137]
[1723355616969,9.78,155.94,155.9,7.69705618]
[1723355617351,9.78,155.94,155.9,6.4143]
[1723355617673,9.78,155.92,155.89,6.4147]
[1723355617848,9.78,155.92,155.88,22.4527]
[1723355620375,9.78,155.92,155.89,7.69743545]
[1723355620872,9.78,155.92,155.9,6.4142]
[1723355621678,9.78,155.94,155.91,22.4487]
[1723355621980,9.78,155.94,155.91,16.0348]
[1723355625377,9.78,155.95,155.92,6.4134]
[1723355626170,9.78,155.95,155.91,22.4487]
[1723355627079,9.78,155.95,155.92,7.69576493]
[1723355627265,9.78,155.96,155.93,7.69558711]
[1723355627464,0.8410911,155.97,155.94,16.0314]
[1723355627664,0.8410911,155.97,155.95,1.2822842]
[1723355627883,10.6210911,155.97,155.94,16.0314]
[1723355629176,9.78,155.95,155.9,16.035]
[1723355629376,16.1923,155.95,155.9,16.035]
[1723355629584,9.78,155.95,155.9,22.4493]
[1723355630669,9.78,155.95,155.91,6.4137]
[1723355632587,9.78,155.93,155.9,16.035]
[1723355632889,9.78,155.91,155.9,22.4493]
[1723355634189,9.78,155.93,155.91,6.4137]
[1723355634487,9.78,155.93,155.9,16.035]
[1723355634898,9.78,155.93,155.9,22.4489]
[1723355635509,9.78,155.93,155.91,6.4138]
[1723355637000,9.78,155.93,155.92,6.4135]
[1723355638384,9.78,155.93,155.91,6.4139]
[1723355638795,9.78,155.93,155.9,22.4493]
[1723355642183,9.78,155.93,155.91,6.4137]
[1723355642799,9.78,155.93,155.9,22.4493]
[1723355643001,9.78,155.93,155.91,6.4138]
[1723355643693,7.2525911,155.97,155.92,6.4135]
[1723355644016,10.6210911,155.97,155.94,6.4123]
[1723355645181,10.6210911,155.97,155.93,22.4458]
[1723355645386,9.78,155.95,155.93,22.4458]
[1723355646489,9.78,155.95,155.93,16.0328]
[1723355648907,9.78,155.95,155.93,22.4457]
[1723355649208,9.78,155.95,155.93,16.0328]
[1723355649385,9.78,155.95,155.89,16.0359]
[1723355649706,9.78,155.93,155.9,6.4142]
[1723355649905,9.78,155.93,155.91,6.4136]
[1723355651786,9.78,155.93,155.89,16.0359]
[1723355651992,9.78,155.9,155.87,6.4155]
[1723355652195,9.78,155.9,155.88,6.415]
[1723355653309,9.78,155.9,155.89,6.4147]
[1723355654108,9.78,155.9,155.88,16.0377]
[1723355654891,15.685,155.94,155.88,16.0377]
[1723355655090,9.78,155.92,155.88,16.0377]
[1723355655289,9.78,155.92,155.89,6.4144]
[1723355656103,9.78,155.92,155.9,6.4142]
[1723355656926,9.78,155.92,155.91,6.4139]
[1723355657518,9.78,155.92,155.9,6.4143]
[1723355657895,9.78,155.92,155.88,16.0377]
[1723355658096,9.78,155.9,155.84,39.2347]
[1723355658914,9.78,155.9,155.87,6.4155]
[1723355659211,9.78,155.9,155.88,6.4151]
[1723355659602,9.78,155.9,155.87,22.4542]
[1723355660134,9.78,155.9,155.88,6.415]
[1723355660321,9.78,155.92,155.87,16.0387]
[1723355660613,9.78,155.92,155.89,6.4147]
[1723355660812,9.78,155.92,155.87,16.0387]
[1723355661696,9.78,155.92,155.91,6.4139]
[1723355663320,9.78,155.92,155.89,6.4143]
[1723355666119,9.78,155.92,155.87,22.454]
[1723355666323,9.78,155.9,155.88,6.415]
[1723355668321,9.78,155.9,155.89,6.4147]
[1723355668519,9.78,155.92,155.89,6.4147]
[1723355670527,9.78,155.92,155.9,6.4142]
[1723355670727,9.78,155.92,155.88,6.4151]
[1723355674413,9.78,155.9,155.84,29.6102]
[1723355674622,9.78,155.88,155.84,23.1936]
[1723355674930,9.78,155.88,155.85,6.4163]
[1723355675133,9.78,155.88,155.86,6.4159]
[1723355680531,9.78,155.88,155.83,16.0422]
[1723355680710,15.104,155.93,155.84,6.4167]
[1723355680711,9.78,155.86,155.84,6.4167]
[1723355681519,9.78,155.86,155.83,22.4594]
[1723355681931,9.78,155.86,155.84,6.4165]
[1723355683340,6.4139,155.91,155.85,6.4164]
[1723355683633,9.78,155.86,155.84,6.4168]
[1723355684232,9.78,155.86,155.85,6.4164]
[1723355684633,9.78,155.86,155.83,16.0422]
[1723355684838,9.78,155.84,155.83,16.0422]
[1723355685722,9.78,155.84,155.8,6.4181]
[1723355685916,9.78,155.82,155.81,6.418]
[1723355686432,6.4156,155.87,155.81,6.418]
[1723355686632,9.78,155.82,155.79,22.4648]
[1723355686822,9.78,155.82,155.79,16.0463]
[1723355688919,9.78,155.82,155.8,6.4184]
[1723355690928,9.78,155.84,155.81,6.418]
[1723355691133,9.78,155.84,155.79,16.0463]
[1723355691334,9.78,155.84,155.82,6.4176]
[1723355691621,9.78,155.84,155.81,6.418]
[1723355694745,9.78,155.84,155.82,6.4174]
[1723355697145,9.78,155.84,155.81,6.418]
[1723355698244,9.78,155.82,155.81,6.418]
[1723355698447,9.78,155.82,155.8,6.4184]
[1723355698742,9.78,155.82,155.79,22.465]
[1723355703340,9.78,155.82,155.8,6.4184]
[1723355703737,9.78,155.83,155.8,6.4184]
[1723355709359,9.78,155.83,155.79,22.4651]
[1723355711351,9.78,155.83,155.8,6.4184]
[1723355711540,9.78,155.86,155.82,16.0441]
[1723355711744,9.78,155.88,155.85,6.4163]
[1723355712153,9.78,155.88,155.84,6.4168]
[1723355712746,9.78,155.88,155.83,7.70031274]
[1723355713063,9.78,155.88,155.83,6.4171]
[1723355713557,9.78,155.88,155.83,7.70036982]
[1723355713963,9.78,155.86,155.83,6.4171]
[1723355714840,9.78,155.86,155.82,22.4617]
[1723355715046,9.78,155.86,155.82,16.0441]
[1723355716139,9.78,155.84,155.82,16.0441]
[1723355717054,9.78,155.84,155.82,22.4616]
[1723355720177,9.78,155.84,155.83,6.4172]
[1723355720563,9.78,155.84,155.82,22.4617]
[1723355720944,9.78,155.84,155.83,6.4172]
[1723355722163,9.78,155.86,155.84,6.4167]
[1723355722464,9.78,155.86,155.85,22.4574]
[1723355722844,9.78,155.86,155.85,16.041]
[1723355726473,9.78,155.86,155.83,6.4171]
[1723355727874,9.78,155.86,155.82,22.4617]
[1723355729877,9.78,155.84,155.82,22.4617]
[1723355730779,9.78,155.84,155.82,16.0441]
[1723355732676,9.78,155.84,155.82,22.4616]
[1723355733082,9.78,155.86,155.82,16.0441]
[1723355733268,9.78,155.88,155.85,6.4163]
[1723355734186,9.78,155.9,155.84,16.0412]
[1723355734494,9.78,155.9,155.85,1.28307945]
[1723355735680,9.78,155.9,155.87,6.4155]
[1723355736181,9.78,155.9,155.86,6.4159]
[1723355738171,9.78,155.88,155.86,6.4159]
[1723355738674,6.4141,155.91,155.86,6.4159]
[1723355738865,9.78,155.88,155.86,6.4159]
[1723355739278,22.6207,155.92,155.87,6.4156]
[1723355739488,9.78,155.89,155.87,6.4156]
[1723355741563,6.4131,155.93,155.87,6.4156]
[1723355741890,9.78,155.91,155.88,1.28289296]
[1723355742191,9.78,155.91,155.87,6.4156]
[1723355742483,6.4135,155.92,155.88,1.28290597]
[1723355742699,9.78,155.91,155.88,1.28290597]
[1723355743391,9.78,155.91,155.88,7.69800597]
[1723355743684,9.78,155.91,155.89,1.28280063]
[1723355744283,9.78,155.91,155.88,6.4151]
[1723355744586,9.78,155.91,155.87,6.4155]
[1723355746473,6.4131,155.93,155.88,7.69771199]
[1723355746673,9.78,155.91,155.88,7.69771199]
[1723355747494,9.78,155.91,155.88,6.4149]
[1723355751296,6.4132,155.93,155.88,6.4149]
[1723355751596,9.78,155.91,155.88,6.4149]
[1723355752796,9.78,155.91,155.87,6.4155]
[1723355752978,9.78,155.91,155.88,6.4151]
[1723355753902,9.78,155.91,155.86,16.039]
[1723355754083,9.78,155.91,155.87,45.0]
[1723355754692,9.78,155.91,155.87,51.4152]
[1723355756082,9.78,155.91,155.88,6.4151]
[1723355757578,9.78,155.91,155.86,16.039]
[1723355757579,9.78,155.91,155.87,6.4155]
[1723355762285,9.78,155.91,155.86,16.039]
[1723355762480,9.78,155.91,155.86,17.32195744]
[1723355762680,9.78,155.91,155.86,16.039]
[1723355763292,9.78,155.91,155.88,6.4148]
[1723355765405,9.78,155.91,155.89,6.4146]
[1723355765791,9.78,155.93,155.9,6.4143]
[1723355767803,9.78,155.93,155.89,7.69748785]
[1723355768019,9.78,155.93,155.89,6.4147]
[1723355769115,9.78,155.91,155.88,22.4521]
[1723355770905,9.78,155.91,155.89,6.4146]
[1723355771086,9.78,155.91,155.88,16.037]
[1723355771087,9.78,155.93,155.88,16.037]
[1723355771290,9.78,155.93,155.89,1.28285962]
[1723355771504,9.78,155.93,155.9,6.414]
[1723355772027,15.7256,155.96,155.9,6.414]
[1723355772238,9.78,155.93,155.9,6.414]
[1723355772887,9.78,155.93,155.89,6.4147]
[1723355773290,9.78,155.93,155.9,6.4143]
[1723355774816,9.78,155.93,155.89,6.4147]
[1723355780514,6.4123,155.95,155.89,7.69744643]
[1723355780703,9.78,155.93,155.89,7.69744643]
[1723355781616,9.78,155.93,155.89,7.69744479]
[1723355781916,9.78,155.93,155.89,6.4147]
[1723355788626,9.78,155.93,155.88,22.4521]
[1723355790931,6.4128,155.94,155.88,22.4521]
[1723355791231,9.78,155.93,155.88,22.4521]
[1723355793811,16.1932,155.93,155.88,22.4521]
[1723355796437,9.78,155.93,155.89,6.4147]
[1723355796927,17.97270137,155.96,155.9,6.4141]
[1723355797235,9.78,155.94,155.9,1.28285138]
[1723355798117,9.78,155.94,155.89,1.28269503]
[1723355798320,9.78,155.94,155.88,16.037]
[1723355798321,9.78,155.94,155.9,7.69699538]
[1723355799242,9.78,155.94,155.9,6.4143]
[1723355800139,9.78,155.94,155.9,7.6969941]
[1723355801040,9.78,155.94,155.9,6.4143]
[1723355801539,9.78,155.94,155.9,7.69698817]
[1723355801844,9.78,155.94,155.9,6.4143]
[1723355803334,0.9665811,155.97,155.88,16.037]
[1723355803335,9.78,155.92,155.88,16.037]
[1723355804737,9.78,155.94,155.9,6.4143]
[1723355805334,9.78,155.94,155.9,7.69698619]
[1723355805945,9.78,155.94,155.9,6.4143]
[1723355807424,9.78,155.94,155.89,6.4147]
[1723355808454,9.78,155.94,155.9,6.4143]
[1723355811731,6.4119,155.96,155.9,6.4143]
[1723355812251,9.78,155.94,155.9,6.4143]
[1723355813724,9.78,155.94,155.91,1.2826634]
[1723355813947,16.1928,155.94,155.89,6.4147]
[1723355815251,9.78,155.94,155.89,6.4147]
[1723355815425,9.78,155.94,155.9,1.28268044]
[1723355816046,9.78,155.94,155.9,7.69688044]
[1723355816251,0.8410911,155.97,155.9,1.28268044]
[1723355816550,0.8410911,155.97,155.89,46.28259769]
[1723355816551,9.78,155.95,155.89,46.28259769]
[1723355817764,9.78,155.95,155.9,6.4143]
[1723355817765,16.1924,155.95,155.9,6.4143]
[1723355819851,9.78,155.95,155.9,7.69684751]
[1723355820040,9.78,155.95,155.9,6.4143]
[1723355820838,9.78,155.93,155.88,22.4518]
[1723355821960,9.78,155.91,155.87,22.8444]
[1723355825451,9.78,155.91,155.88,6.415]
[1723355825963,9.78,155.91,155.89,6.4147]
[1723355828343,9.78,155.92,155.89,6.4147]
[1723355829960,9.78,155.92,155.9,6.4142]
[1723355830762,9.78,155.94,155.9,6.4142]
[1723355831957,9.78,155.94,155.87,32.4668]
[1723355831958,9.78,155.92,155.87,32.4668]
[1723355832158,9.78,155.92,155.88,6.4151]
[1723355832360,17.97285232,155.96,155.89,16.0359]
[1723355832570,16.1921,155.96,155.9,6.4141]
[1723355832794,9.78,155.94,155.9,6.4141]
[1723355833560,9.78,155.94,155.91,6.4136]
[1723355835789,6.4121,155.96,155.91,6.4136]
[1723355835986,9.78,155.94,155.9,6.4143]
[1723355836655,9.78,155.92,155.89,16.0359]
[1723355836852,9.78,155.9,155.87,22.8441]
[1723355837056,9.78,155.88,155.85,22.4564]
[1723355840259,9.78,155.86,155.85,16.0401]
[1723355840861,9.78,155.86,155.85,22.4565]
[1723355849191,9.28203378,155.95,155.88,16.0376]
[1723355849489,9.78,155.93,155.88,16.0376]
[1723355849793,9.78,155.93,155.89,6.4144]
[1723355852683,9.78,155.93,155.88,16.0376]
[1723355852881,9.78,155.93,155.9,6.4143]
[1723355854367,9.78,155.93,155.91,6.4138]
[1723355856469,9.78,155.93,155.9,6.4143]
[1723355856673,9.78,155.93,155.89,6.4147]
[1723355859988,6.4127,155.94,155.89,6.4147]
[1723355860198,9.78,155.93,155.89,6.4147]
[1723355860368,0.8410911,155.97,155.93,6.4127]
[1723355860802,0.8410911,155.97,155.94,6.4126]
[1723355860978,0.8410911,155.97,155.95,6.4122]
[1723355862077,0.8410911,155.97,155.93,7.6952556]
[1723355862395,0.8410911,155.97,155.94,6.4124]
[1723355864501,0.8410911,155.97,155.93,7.69540669]
[1723355864894,0.8410911,155.97,155.94,7.69498339]
[1723355865479,0.8410911,155.97,155.95,6.4122]
[1723355865995,0.8410911,155.97,155.96,24.09666194]
[1723355866182,0.8410911,155.97,155.96,89.34764194]
[1723355867888,6.4069,156.08,156.02,6.4092]
[1723355868094,9.78,156.07,156.02,6.4092]
[1723355868327,16.1874,156.07,156.02,6.4092]
[1723355869198,6.4074,156.07,156.01,22.4341]
[1723355869397,9.78,156.06,156.01,22.4341]
[1723355869622,6.4071,156.08,156.02,6.4092]
[1723355869787,9.78,156.08,156.03,6.4087]
[1723355869990,41.9052784,156.14,156.01,16.0243]
[1723355869991,16.1877,156.06,156.01,16.0243]
[1723355870213,6.4077,156.06,156.01,16.0243]
[1723355870402,9.78,156.06,156.01,22.4341]
[1723355870592,9.78,156.06,156.02,7.69103337]
[1723355870917,41.9052784,156.14,156.03,6.409]
[1723355871112,9.78,156.08,156.03,6.409]
[1723355871602,9.78,156.09,156.04,7.6900795]
[1723355871907,0.12549,156.12,156.06,6.4076]
[1723355871908,6.4056,156.12,156.06,6.4076]
[1723355872104,9.78,156.11,156.06,6.4076]
[1723355872290,6.4056,156.12,156.06,6.4076]
[1723355872605,9.78,156.11,156.06,6.4076]
[1723355872999,6.4056,156.12,156.06,6.4076]
[1723355873187,9.78,156.11,156.06,6.4076]
[1723355873688,6.4056,156.12,156.06,6.4076]
[1723355874001,9.78,156.11,156.06,6.4076]
[1723355875208,6.4056,156.12,156.06,6.4076]
[1723355875389,9.78,156.11,156.06,6.4076]
[1723355875894,9.78,156.11,156.04,16.0205]
[1723355875895,9.78,156.12,156.07,16.0181]
[1723355876196,9.78,156.12,156.08,6.4069]
[1723355876701,9.78,156.12,156.07,16.0181]
[1723355877407,16.1853,156.12,156.07,22.4254]
[1723355877593,9.78,156.1,156.07,16.0181]
[1723355878200,9.78,156.1,156.04,6.4082]
[1723355878393,9.78,156.1,156.05,6.4081]
[1723355878601,9.78,156.08,156.03,16.0218]
[1723355878792,9.78,156.08,156.03,22.4307]
[1723355879116,9.78,156.06,156.03,16.0218]
[1723355879412,9.78,156.06,156.03,22.4307]
[1723355881011,9.78,156.06,155.99,22.515]
[1723355881418,9.78,156.02,155.99,22.4364]
[1723355881627,9.78,156.04,156.02,6.4093]
[1723355881789,6.0126,156.09,156.02,16.0233]
[1723355881998,9.78,156.07,156.03,1.28166274]
[1723355882199,9.78,156.07,156.04,6.4084]
[1723355882426,9.78,156.07,156.03,6.4088]
[1723355883504,9.78,156.07,156.03,6.409]
[1723355884119,9.78,156.07,156.02,16.0233]
[1723355884919,9.78,156.07,156.02,22.4326]
[1723355886930,16.1875,156.07,156.02,16.0233]
[1723355887104,9.78,156.07,156.02,22.4326]
[1723355887304,16.1874,156.07,156.02,16.0233]
[1723355887525,9.78,156.07,156.02,22.4327]
[1723355890304,16.1873,156.07,156.02,22.4327]
[1723355891005,9.78,156.05,156.0,6.4098]
[1723355891322,9.78,156.03,155.99,6.4106]
[1723355892724,9.78,156.03,155.98,22.4379]
[1723355893221,9.78,156.03,155.99,6.4105]
[1723355894710,9.78,156.03,155.98,16.0269]
[1723355895515,9.78,156.03,155.99,1.28195577]
[1723355896111,9.78,156.03,155.98,16.0269]
[1723355896112,9.78,156.05,155.98,17.30885615]
[1723355896309,9.78,156.05,156.01,6.4098]
[1723355896513,6.4077,156.07,156.01,6.4098]
[1723355897208,6.4078,156.06,156.01,6.4098]
[1723355897818,28.61719576,156.11,156.02,1.28178182]
[1723355898129,9.78,156.09,156.02,1.28178182]
[1723355898719,16.1865,156.09,156.03,6.4088]
[1723355898921,16.1865,156.09,156.04,6.4086]
[1723355899305,25.6825,156.11,156.04,16.0211]
[1723355899710,25.6825,156.11,156.05,1.28146664]
[1723355899910,9.78,156.11,156.05,1.28146664]
[1723355900124,6.4062,156.1,156.05,6.4081]
[1723355900526,9.78,156.11,156.05,7.68951598]
[1723355900527,16.1857,156.11,156.05,7.68951598]
[1723355900928,6.4063,156.1,156.05,6.4081]
[1723355901332,9.78,156.11,156.06,1.28140873]
[1723355901631,6.4062,156.1,156.04,22.4296]
[1723355902128,6.4057,156.11,156.05,16.188]
[1723355902807,6.4057,156.11,156.06,6.4077]
[1723355903011,6.4057,156.11,156.06,7.68906929]
[1723355903428,6.4057,156.11,156.05,9.78]
[1723355903619,6.4061,156.1,156.04,22.4293]
[1723355903817,6.4065,156.09,156.04,22.4293]
[1723355904427,9.78,156.12,156.04,22.4293]
[1723355904615,6.4061,156.1,156.04,22.4293]
[1723355905011,6.4068,156.09,156.04,16.0211]
[1723355906021,6.407,156.08,156.02,6.4093]
[1723355906314,6.4076,156.07,156.01,6.4098]
[1723355907129,9.78,156.04,155.97,6.2793]
[1723355907337,9.28,156.02,155.97,12.6906]
[1723355907535,6.4085,156.05,155.99,16.0264]
[1723355907842,9.78,156.05,155.99,22.4366]
[1723355908028,9.78,156.05,155.99,16.0264]
[1723355908723,9.78,156.05,156.0,1.28191232]
[1723355909234,0.12549,156.08,156.02,16.0234]
[1723355909415,6.4084,156.05,155.99,6.4103]
[1723355909610,16.1886,156.04,155.98,22.4381]
[1723355910546,9.78,156.02,155.98,16.0271]
[1723355910920,9.78,156.02,155.98,22.438]
[1723355911329,9.78,156.02,155.99,6.4103]
[1723355911841,9.78,156.02,155.98,16.0271]
[1723355912340,9.78,156.02,155.98,22.4381]
[1723355914447,9.78,156.0,155.94,16.0309]
[1723355914638,9.78,155.98,155.94,16.0309]
[1723355914842,9.78,155.98,155.95,6.4122]
[1723355915872,9.78,155.98,155.94,22.4435]
[1723355919042,9.78,155.98,155.95,6.4121]
[1723355919279,9.78,156.0,155.95,6.4121]
[1723355919570,16.1903,156.0,155.95,6.4121]
[1723355920475,16.1903,156.0,155.94,16.0309]
[1723355920476,9.78,155.96,155.9,16.035]
[1723355920854,32.0584,156.02,155.9,25.815]
[1723355920855,16.1911,155.98,155.9,25.815]
[1723355921643,16.1911,155.98,155.93,6.413]
[1723355922174,9.78,155.98,155.9,16.035]
[1723355922358,9.78,155.96,155.9,16.035]
[1723355922911,9.78,155.96,155.91,6.4139]
[1723355925084,16.1921,155.96,155.9,22.4493]
[1723355925572,16.1921,155.96,155.91,6.4137]
[1723355927764,16.1921,155.96,155.9,22.4493]
[1723355927975,6.4123,155.95,155.9,22.4493]
[1723355928172,9.78,155.96,155.9,22.4493]
[1723355928476,9.78,155.96,155.92,6.4134]
[1723355929585,9.78,155.96,155.91,7.69639369]
[1723355930175,9.78,155.96,155.91,6.4139]
[1723355930781,16.1919,155.96,155.91,6.4139]
[1723355931175,16.1919,155.96,155.92,1.28253868]
[1723355932089,16.1919,155.96,155.91,6.4139]
[1723355932670,6.4115,155.97,155.92,6.4134]
[1723355932974,16.1915,155.97,155.92,6.4134]
[1723355935961,6.412,155.96,155.91,7.69633058]
[1723355937179,6.4124,155.95,155.9,22.4493]
[1723355940466,6.4127,155.94,155.9,16.035]
[1723355940664,9.78,155.97,155.89,6.3894]
[1723355940665,9.78,155.95,155.89,6.3894]
[1723355940882,9.78,155.95,155.88,15.4481]
[1723355941080,6.4131,155.93,155.88,21.8631]
[1723355941286,16.1931,155.93,155.88,21.8631]
[1723355941869,9.78,155.93,155.88,21.8631]
[1723355942094,9.78,155.93,155.89,6.4147]
[1723355942482,16.1926,155.95,155.9,6.4143]
[1723355942871,6.4129,155.94,155.89,6.4147]
[1723355943276,6.4131,155.93,155.88,37.9002]
[1723355945591,16.1931,155.93,155.88,16.037]
[1723355945993,6.4135,155.92,155.88,16.037]
[1723355946292,6.4135,155.92,155.86,6.4159]
[1723355947290,6.4139,155.91,155.86,6.4159]
[1723355947495,6.4143,155.9,155.85,29.1049]
[1723355947921,16.1949,155.89,155.85,16.0409]
[1723355948207,16.1949,155.89,155.84,15.9251]
[1723355948994,6.4152,155.88,155.84,15.9251]
[1723355949418,9.78,155.89,155.84,15.9251]
[1723355950412,9.78,155.89,155.81,22.6918]
[1723355950616,16.1959,155.87,155.82,51.4176]
[1723355950794,16.1959,155.87,155.82,6.4176]
[1723355951292,9.78,155.87,155.82,6.4176]
[1723355951684,6.416,155.86,155.81,16.0442]
[1723355952409,16.1964,155.85,155.81,16.0442]
[1723355952616,16.1964,155.85,155.79,6.4188]
[1723355952789,16.1964,155.85,155.77,38.6211]
[1723355952986,9.78,155.85,155.77,38.6211]
[1723355953987,9.78,155.85,155.79,6.4188]
[1723355954205,9.78,155.85,155.8,6.4182]
[1723355954386,16.1964,155.85,155.8,6.4182]
[1723355955507,16.1964,155.85,155.79,6.4188]
[1723355955686,6.4171,155.84,155.78,6.4192]
[1723355956816,16.1973,155.83,155.77,22.4681]
[1723355958214,16.1973,155.83,155.78,6.4193]
[1723355958637,9.78,155.83,155.79,6.4188]
[1723355959099,9.78,155.83,155.77,22.4677]
[1723355959308,9.78,155.83,155.78,6.419]
[1723355959911,6.4172,155.84,155.78,6.419]
[1723355960114,16.1972,155.84,155.78,6.419]
[1723355960310,16.1972,155.84,155.79,6.4188]
[1723355960506,16.1972,155.84,155.77,22.4677]
[1723355960729,16.1972,155.84,155.78,6.4191]
[1723355961931,6.4173,155.83,155.77,16.0484]
[1723355962504,6.4173,155.83,155.77,22.4677]
[1723355962701,6.4173,155.83,155.78,6.4192]
[1723355963022,16.1973,155.83,155.78,6.4192]
[1723355963336,6.4176,155.82,155.77,16.0484]
[1723355966623,16.1972,155.83,155.77,16.0484]
[1723355968110,16.1972,155.83,155.77,22.4677]
[1723355968420,6.4177,155.82,155.77,22.4677]
[1723355968729,16.1972,155.83,155.77,22.4677]
[1723355968907,16.1972,155.83,155.77,23.75135589]
[1723355969228,16.1972,155.83,155.77,22.4677]
[1723355971233,6.4181,155.81,155.74,9.78]
[1723355971531,6.4181,155.81,155.75,45.0]
[1723355971835,6.4181,155.81,155.75,51.4201]
[1723355972833,6.4181,155.81,155.76,6.4201]
[1723355973711,6.4186,155.8,155.74,11.06379124]
[1723355974008,6.4189,155.79,155.74,6.4209]
[1723355974922,6.4189,155.79,155.74,7.70486093]
[1723355975714,6.4189,155.79,155.74,6.4209]
[1723355978638,9.78,155.81,155.73,25.8325]
[1723355978815,16.1079,155.82,155.75,16.2003]
[1723355979015,6.418,155.81,155.76,6.4199]
[1723355979215,16.1079,155.82,155.76,6.4199]
[1723355979521,6.4181,155.81,155.76,6.4199]
[1723355981125,6.4181,155.81,155.75,6.4204]
[1723355981837,6.4181,155.81,155.76,6.4199]
[1723355983622,22.5256,155.82,155.76,6.4199]
[1723355983836,6.4177,155.82,155.77,1.28371288]
[1723355984136,6.4177,155.82,155.76,22.4702]
[1723355984330,6.4182,155.81,155.76,22.4702]
[1723355984530,6.4182,155.81,155.77,1.2837591]
[1723355984843,6.4182,155.81,155.76,22.4702]